bitfinex-derivatives/quotes_SOLF0:USTF0_20250823
["timestamp","ask_amount","ask_price","bid_price","bid_amount"]
[1755941198148,4.9091,203.78,203.76,2.81]
[1755941199948,4.9091,203.78,203.7,6.20836478]
[1755941200148,4.9091,203.78,203.77,2.81]
[1755941200838,4.9091,203.78,203.75,2.81]
[1755941203254,4.9091,203.78,203.76,2.81]
[1755941203955,4.9091,203.78,203.7,11.11916478]
[1755941204153,4.9091,203.78,203.71,19.06878616]
[1755941204349,4.9091,203.78,203.72,9.87658086]
[1755941204548,4.9091,203.78,203.74,2.81]
[1755941204951,4.9091,203.78,203.75,2.81]
[1755941205152,4.9091,203.78,203.76,4.81790421]
[1755941205353,4.9091,203.78,203.77,4.81790421]
[1755941206150,4.9091,203.78,203.77,4.8177502]
[1755941207954,4.9091,203.78,203.75,2.81]
[1755941208157,4.9091,203.78,203.76,4.82058625]
[1755941208459,4.9091,203.78,203.75,2.81]
[1755941208657,4.9091,203.78,203.76,4.82093962]
[1755941208858,4.9091,203.78,203.75,2.81]
[1755941209157,4.9091,203.78,203.76,7.62989522]
[1755941209362,24.5378,203.84,203.77,4.82110063]
[1755941209662,24.5378,203.84,203.71,2.81]
[1755941209857,4.9087,203.8,203.73,2.81]
[1755941210159,24.5378,203.84,203.74,9.82723074]
[1755941210359,24.5378,203.84,203.75,9.82774339]
[1755941210561,24.5378,203.84,203.76,4.82120962]
[1755941210760,24.5378,203.84,203.73,2.81]
[1755941210761,24.5378,203.84,203.77,4.82120962]
[1755941211060,24.5378,203.84,203.73,2.81]
[1755941211262,24.5378,203.84,203.74,9.82820617]
[1755941211556,24.5378,203.84,203.75,9.82820617]
[1755941211858,24.5378,203.84,203.76,4.82168749]
[1755941212061,4.9091,203.78,203.77,4.82168749]
[1755941212661,0.5,203.78,203.65,2.81]
[1755941212968,6.20836478,203.8,203.66,16.22155524]
[1755941213265,6.20836478,203.76,203.67,4.93898181]
[1755941213461,6.20836478,203.76,203.62,2.81]
[1755941213768,24.5526,203.72,203.63,6.91731099]
[1755941213961,24.5502,203.74,203.64,9.72657902]
[1755941214267,24.5486,203.75,203.65,6.91657902]
[1755941214466,4.9106,203.72,203.66,7.75179346]
[1755941214667,4.9106,203.72,203.66,2.81]
[1755941214969,24.5498,203.74,203.66,2.81]
[1755941215372,4.9109,203.7,203.67,4.93546488]
[1755941215665,4.9109,203.7,203.66,2.81]
[1755941215865,4.9109,203.7,203.67,4.93388927]
[1755941216069,4.9103,203.73,203.67,2.81]
[1755941216256,4.9103,203.73,203.68,4.93306048]
[1755941216461,4.9103,203.73,203.68,2.81]
[1755941216662,4.9103,203.73,203.61,2.81]
[1755941216863,4.9103,203.73,203.63,2.81]
[1755941217168,4.9103,203.73,203.65,2.81]
[1755941217368,4.9103,203.73,203.66,6.90509493]
[1755941217571,4.9103,203.73,203.67,6.90509493]
[1755941217763,4.9103,203.73,203.68,4.93300146]
[1755941218066,4.9103,203.73,203.6,4.9133]
[1755941218272,4.9103,203.73,203.62,2.81]
[1755941218568,4.9103,203.73,203.64,2.81]
[1755941218767,4.9103,203.73,203.66,2.81]
[1755941218968,4.9103,203.73,203.67,6.90833618]
[1755941219160,4.9103,203.73,203.68,6.90833618]
[1755941219362,4.9103,203.73,203.7,2.81]
[1755941220367,4.9103,203.73,203.71,4.93832864]
[1755941220567,4.9097,203.76,203.63,2.81]
[1755941220770,4.9097,203.76,203.67,2.81]
[1755941221072,4.9097,203.76,203.69,2.81]
[1755941221273,4.9097,203.76,203.7,6.91072799]
[1755941221460,4.9097,203.76,203.71,6.91072799]
[1755941221660,4.9097,203.76,203.72,4.93703355]
[1755941221869,4.9097,203.76,203.69,2.81]
[1755941222070,4.9097,203.76,203.7,6.91070286]
[1755941222264,4.9097,203.76,203.71,6.91070286]
[1755941222462,4.9097,203.76,203.72,7.7470187]
[1755941222667,4.9097,203.76,203.73,2.81]
[1755941223775,4.9089,203.79,203.73,2.81]
[1755941224472,4.9089,203.79,203.66,6.20836478]
[1755941224473,4.9089,203.79,203.74,4.93701192]
[1755941224773,4.9089,203.79,203.76,2.79]
[1755941225674,24.5384,203.84,203.71,2.79]
[1755941225675,4.9092,203.78,203.71,2.79]
[1755941225874,24.5419,203.81,203.72,9.69703052]
[1755941226075,24.5403,203.82,203.73,9.69681046]
[1755941226276,4.909,203.78,203.74,4.76008192]
[1755941226472,4.909,203.78,203.75,4.76008192]
[1755941226669,24.5384,203.84,203.71,2.79]
[1755941226878,24.5384,203.84,203.72,11.66698005]
[1755941227077,4.9087,203.8,203.76,2.79]
[1755941227376,4.9087,203.8,203.77,4.75921146]
[1755941227568,4.9087,203.8,203.76,2.79]
[1755941227876,4.9087,203.8,203.77,4.75958096]
[1755941228177,4.9087,203.8,203.78,2.79]
[1755941229077,24.5399,203.83,203.72,2.79]
[1755941229376,24.5399,203.83,203.73,11.66497969]
[1755941229570,24.5399,203.83,203.74,11.66497969]
[1755941229772,4.9094,203.77,203.75,4.75828153]
[1755941229973,24.5416,203.81,203.76,4.75769588]
[1755941230173,24.541,203.82,203.72,2.79]
[1755941230377,4.91,203.74,203.73,9.69387862]
[1755941231182,4.91,203.74,203.73,4.75853507]
[1755941231973,4.9107,203.71,203.68,2.79]
[1755941232178,4.9107,203.71,203.69,14.45509691]
[1755941232379,4.9107,203.71,203.7,9.69347697]
[1755941232582,4.9107,203.71,203.7,7.5483321]
[1755941232887,4.9107,203.71,203.7,2.79]
[1755941233184,4.9107,203.71,203.7,7.54786753]
[1755941233984,4.9107,203.71,203.7,7.54182076]
[1755941234980,4.9107,203.71,203.7,12.47554934]
[1755941235377,4.9107,203.71,203.7,7.54182076]
[1755941238781,4.9107,203.71,203.7,4.75182076]
[1755941241889,4.9107,203.71,203.7,2.076e-05]
[1755941242093,4.9121,203.65,203.64,2.79]
[1755941242495,4.9121,203.65,203.64,4.95593641]
[1755941242792,4.9121,203.65,203.63,6.20836478]
[1755941243391,4.9121,203.65,203.63,8.99836478]
[1755941244388,4.9121,203.65,203.63,6.478e-05]
[1755941244789,4.9133,203.6,203.59,6.20836478]
[1755941244990,24.5635,203.63,203.59,13.95361215]
[1755941245198,24.5635,203.63,203.59,8.99836478]
[1755941245492,4.9133,203.6,203.59,8.99836478]
[1755941245692,4.9133,203.6,203.59,13.95077408]
[1755941247690,24.5635,203.63,203.59,13.95077408]
[1755941247891,24.5635,203.63,203.6,4.9524093]
[1755941248092,24.5635,203.63,203.61,2.79]
[1755941249592,4.9128,203.62,203.61,2.79]
[1755941250097,24.561,203.65,203.61,2.79]
[1755941250295,24.561,203.65,203.59,6.20836478]
[1755941250495,24.561,203.65,203.63,2.79]
[1755941251499,4.9123,203.64,203.63,2.79]
[1755941251698,24.5632,203.63,203.59,6.20836478]
[1755941251899,27.3032,203.63,203.59,6.20836478]
[1755941252296,4.9129,203.62,203.59,6.20836478]
[1755941252796,4.9133,203.61,203.59,6.20836478]
[1755941253892,24.561,203.65,203.6,9.63227469]
[1755941254093,24.561,203.65,203.63,2.59]
[1755941254500,4.9123,203.64,203.63,2.59]
[1755941255200,4.9123,203.64,203.63,7.27104683]
[1755941255400,4.9123,203.64,203.63,12.22184982]
[1755941256805,24.5583,203.67,203.64,2.59]
[1755941257003,24.5583,203.67,203.65,4.68104683]
[1755941257200,24.5583,203.67,203.64,2.59]
[1755941257405,24.5583,203.67,203.65,4.68333729]
[1755941257703,24.5583,203.67,203.64,2.59]
[1755941257904,24.5583,203.67,203.65,4.68476101]
[1755941258204,24.5583,203.67,203.64,2.59]
[1755941258502,4.9118,203.66,203.65,4.68465343]
[1755941259607,4.9118,203.66,203.63,6.20836478]
[1755941259608,4.9123,203.64,203.63,6.20836478]
[1755941259904,2.61,203.64,203.6,2.59]
[1755941260200,24.5616,203.65,203.61,4.95799792]
[1755941260402,4.913,203.61,203.59,6.20836478]
[1755941260602,7.523,203.61,203.59,6.20836478]
[1755941261307,4.914,203.57,203.56,2.59]
[1755941261507,24.5643,203.62,203.56,9.51876912]
[1755941261807,24.5643,203.62,203.57,6.92755752]
[1755941262006,4.9131,203.61,203.59,2.59]
[1755941262202,4.9131,203.61,203.6,4.95549111]
[1755941262604,24.5583,203.67,203.6,7.54549111]
[1755941262908,27.1695,203.66,203.62,2.59]
[1755941263102,2.61,203.65,203.62,2.59]
[1755941264009,24.5595,203.66,203.62,2.59]
[1755941264307,24.5595,203.66,203.63,4.95203641]
[1755941264608,27.1683,203.67,203.63,2.59]
[1755941265308,4.9126,203.64,203.59,6.20836478]
[1755941265608,4.9126,203.64,203.6,6.86664347]
[1755941265807,4.9126,203.64,203.59,6.20836478]
[1755941265808,4.9126,203.64,203.61,6.86664347]
[1755941266009,4.9126,203.64,203.63,2.59]
[1755941266411,4.9126,203.64,203.63,7.48953374]
[1755941267005,24.5566,203.69,203.63,8.79836478]
[1755941267709,4.912,203.66,203.63,6.20836478]
[1755941268007,2.61,203.71,203.65,2.59]
[1755941268607,4.9114,203.68,203.63,6.20836478]
[1755941268812,2.61,203.71,203.68,2.59]
[1755941269513,2.61,203.74,203.68,2.59]
[1755941270510,4.9107,203.71,203.68,2.59]
[1755941270710,4.9107,203.71,203.69,2.59]
[1755941271214,2.61,203.77,203.7,7.48709723]
[1755941271411,2.61,203.77,203.72,6.20836478]
[1755941271412,4.9099,203.74,203.72,6.20836478]
[1755941271712,4.9099,203.74,203.73,4.6132102]
[1755941274709,7.5199,203.74,203.73,4.6132102]
[1755941274914,4.9104,203.72,203.71,6.20836478]
[1755941282018,7.5204,203.72,203.71,6.20836478]
[1755941282218,4.9116,203.67,203.66,6.20836478]
[1755941282523,27.1631,203.72,203.66,10.82897601]
[1755941282822,27.1631,203.72,203.66,6.20836478]
[1755941283223,4.9116,203.67,203.66,6.20836478]
[1755941283420,4.9116,203.67,203.4,245.9059]
[1755941283421,2.79,203.67,203.62,6.20836478]
[1755941283622,2.79,203.66,203.63,9.52853865]
[1755941283819,7.7021,203.65,203.64,4.62248879]
[1755941284413,4.9126,203.63,203.62,6.20836478]
[1755941284621,4.9126,203.63,203.62,18.34796653]
[1755941285222,4.9126,203.63,203.62,20.31823643]
[1755941286223,4.9122,203.65,203.62,20.31823643]
[1755941286423,4.9122,203.65,203.63,11.49997815]
[1755941286622,4.9122,203.65,203.64,9.52960175]
[1755941287025,4.9122,203.65,203.64,12.13960175]
[1755941288024,4.9122,203.65,203.64,2.61]
[1755941288225,4.9122,203.65,203.64,12.13732317]
[1755941288930,4.9122,203.65,203.64,9.52751396]
[1755941289930,4.9122,203.65,203.64,4.62209681]
[1755941291232,4.9122,203.65,203.64,9.52867739]
[1755941293025,4.9134,203.6,203.58,6.20836478]
[1755941293228,4.9134,203.6,203.59,11.50829407]
[1755941293433,4.9134,203.6,203.59,14.11829407]
[1755941294221,4.9134,203.6,203.59,18.53598022]
[1755941294628,4.9134,203.6,203.59,15.92598022]
[1755941294824,4.9134,203.6,203.59,9.53659669]
[1755941295233,24.5583,203.67,203.59,22.14648477]
[1755941295435,24.5583,203.67,203.61,2.61]
[1755941295638,27.3483,203.67,203.63,2.61]
[1755941295836,7.7018,203.66,203.64,9.53659669]
[1755941296133,2.79,203.66,203.65,4.60858751]
[1755941296334,4.9118,203.66,203.65,9.52379798]
[1755941297033,7.7018,203.66,203.65,9.52379798]
[1755941297432,7.7018,203.66,203.65,9.52435258]
[1755941297636,7.7018,203.66,203.65,9.52503918]
[1755941297936,4.9123,203.64,203.63,2.61]
[1755941298132,4.9123,203.64,203.63,11.51146697]
[1755941299738,4.9123,203.64,203.63,14.12146697]
[1755941302134,4.9123,203.64,203.63,18.54000129]
[1755941302540,4.9123,203.64,203.63,14.12146697]
[1755941302838,4.9123,203.64,203.63,18.5400592]
[1755941303340,4.9123,203.64,203.63,14.12146697]
[1755941303539,4.9123,203.64,203.63,9.2039317]
[1755941303740,4.9123,203.64,203.63,18.54148964]
[1755941303940,4.9123,203.64,203.63,18.54045852]
[1755941304141,4.9123,203.64,203.63,14.12281317]
[1755941306134,4.9123,203.64,203.63,11.51281317]
[1755941306540,4.9123,203.64,203.63,14.12281317]
[1755941306741,4.9123,203.64,203.63,12.14317641]
[1755941306949,4.9123,203.64,203.63,14.12803829]
[1755941307240,4.9123,203.64,203.63,9.51494121]
[1755941307440,4.9123,203.64,203.63,14.12818163]
[1755941307636,4.9123,203.64,203.63,14.12874398]
[1755941308635,4.9119,203.66,203.63,17.72710876]
[1755941308841,4.9119,203.66,203.65,2.61]
[1755941309040,4.9119,203.66,203.65,14.12874398]
[1755941309936,4.9119,203.66,203.65,14.12856388]
[1755941312944,4.9119,203.66,203.65,12.14352141]
[1755941313146,4.9119,203.66,203.65,14.12907288]
[1755941313944,2.65,203.73,203.65,18.54861338]
[1755941314147,2.65,203.73,203.67,2.71]
[1755941314445,4.9111,203.69,203.68,12.24352141]
[1755941314947,4.9107,203.71,203.7,2.71]
[1755941315145,4.9107,203.71,203.7,14.22793936]
[1755941315346,27.1981,203.76,203.7,18.64484541]
[1755941315546,27.1981,203.76,203.72,2.71]
[1755941315747,4.9097,203.75,203.73,9.53352141]
[1755941315946,4.9097,203.75,203.74,9.53352141]
[1755941316147,4.9097,203.75,203.74,4.61324042]
[1755941316343,4.9102,203.73,203.72,2.71]
[1755941316548,27.1927,203.8,203.73,2.71]
[1755941316847,27.1927,203.8,203.74,11.50644488]
[1755941317044,27.1927,203.8,203.76,2.71]
[1755941317246,27.1927,203.8,203.77,4.60889524]
[1755941317448,27.1927,203.8,203.76,2.71]
[1755941317642,27.1927,203.8,203.77,9.51839858]
[1755941317844,4.9092,203.77,203.76,2.71]
[1755941318045,4.9092,203.77,203.76,14.21005688]
[1755941318350,4.9092,203.77,203.76,14.20937434]
[1755941319444,4.9092,203.77,203.76,11.49557488]
[1755941321450,4.9092,203.77,203.76,9.51439253]
[1755941322450,4.9092,203.77,203.76,4.90875682]
[1755941322651,4.9092,203.77,203.76,9.50765597]
[1755941323352,4.9092,203.77,203.76,7.30889915]
[1755941323545,4.9092,203.77,203.76,4.59889915]
[1755941323746,7.5592,203.77,203.76,4.59889915]
[1755941323951,4.9092,203.77,203.76,4.59889915]
[1755941325452,4.9097,203.75,203.74,2.71]
[1755941327451,24.5427,203.8,203.74,2.71]
[1755941327652,2.65,203.78,203.75,6.20836478]
[1755941327854,2.65,203.77,203.75,6.20836478]
[1755941328557,4.9095,203.76,203.75,6.20836478]
[1755941329556,4.9095,203.76,203.75,8.91836478]
[1755941330760,4.9091,203.78,203.75,6.20836478]
[1755941331056,4.9091,203.78,203.77,2.71]
[1755941331955,4.9086,203.8,203.77,2.71]
[1755941332258,27.1875,203.85,203.76,2.71]
[1755941333657,4.9086,203.8,203.75,6.20836478]
[1755941333955,4.9086,203.8,203.79,2.71]
[1755941334155,4.9081,203.82,203.81,2.71]
[1755941335353,27.1837,203.88,203.81,2.71]
[1755941335954,4.9079,203.83,203.81,2.71]
[1755941336150,4.9079,203.83,203.82,2.71]
[1755941337260,4.9081,203.82,203.8,2.71]
[1755941338360,4.9084,203.81,203.79,6.20836478]
[1755941339353,4.9084,203.81,203.8,2.71]
[1755941339658,24.5332,203.88,203.8,2.71]
[1755941339960,2.65,203.87,203.8,2.71]
[1755941340759,4.9077,203.84,203.83,8.91836478]
[1755941341857,7.5577,203.84,203.83,6.20836478]
[1755941342254,4.9077,203.84,203.83,6.20836478]
[1755941345761,7.5777,203.84,203.83,6.20836478]
[1755941345962,4.9077,203.84,203.83,8.77836478]
[1755941346563,4.9071,203.86,203.83,8.77836478]
[1755941346762,4.9071,203.86,203.83,6.20836478]
[1755941347161,4.9071,203.86,203.84,2.57]
[1755941348068,2.67,203.89,203.76,2.57]
[1755941348267,2.67,203.89,203.79,6.20836478]
[1755941348466,2.67,203.89,203.8,9.47537231]
[1755941348658,2.67,203.89,203.81,9.47537231]
[1755941348867,4.9084,203.81,203.79,6.20836478]
[1755941349064,4.9084,203.81,203.8,9.47914086]
[1755941349667,4.9084,203.81,203.8,4.90912498]
[1755941349862,7.5784,203.81,203.79,6.20836478]
[1755941350761,2.67,203.8,203.79,6.20836478]
[1755941351066,4.9092,203.77,203.75,8.77836478]
[1755941351369,4.9092,203.77,203.76,11.47760861]
[1755941351563,4.9092,203.77,203.76,9.48822327]
[1755941352568,4.9092,203.77,203.76,9.49740855]
[1755941352866,4.9092,203.77,203.76,12.06740855]
[1755941353057,4.9092,203.77,203.76,12.06796299]
[1755941353265,4.9088,203.79,203.77,2.57]
[1755941355270,4.9088,203.79,203.78,4.94564739]
[1755941355471,4.9088,203.79,203.78,9.49890881]
[1755941355669,4.9084,203.81,203.78,11.51193827]
[1755941355871,4.9084,203.81,203.79,11.51193827]
[1755941356070,4.9084,203.81,203.8,9.49890881]
[1755941356369,4.9084,203.81,203.8,11.51229444]
[1755941357169,7.5779,203.83,203.8,11.51229444]
[1755941357373,7.5779,203.83,203.81,11.51229444]
[1755941357673,7.5779,203.83,203.82,9.49890881]
[1755941358370,7.5779,203.83,203.82,11.51470993]
[1755941359368,7.5779,203.83,203.82,4.94564739]
[1755941359565,4.909,203.78,203.75,8.77836478]
[1755941359770,4.909,203.78,203.77,2.57]
[1755941359971,4.909,203.78,203.77,18.50331868]
[1755941361877,4.909,203.78,203.77,13.54771924]
[1755941362074,4.9085,203.8,203.77,18.51034841]
[1755941362274,4.9085,203.8,203.75,6.20836478]
[1755941362275,4.9085,203.8,203.78,11.54270295]
[1755941362472,4.9085,203.8,203.79,11.54270295]
[1755941363081,4.9085,203.8,203.79,14.11270295]
[1755941367080,4.9081,203.82,203.79,14.11270295]
[1755941367278,4.9081,203.82,203.81,2.57]
[1755941367577,4.9081,203.82,203.81,14.11270295]
[1755941369083,4.9076,203.84,203.82,2.57]
[1755941369373,4.9076,203.84,203.83,14.11349558]
[1755941370169,4.907,203.87,203.83,22.1532375]
[1755941370370,4.907,203.87,203.86,2.57]
[1755941370573,4.907,203.87,203.86,14.11349558]
[1755941371380,4.907,203.87,203.86,14.11428394]
[1755941371778,2.67,203.93,203.86,14.11402271]
[1755941372078,529.0,204.15,203.91,2.57]
[1755941372079,2.67,203.96,203.91,2.57]
[1755941372278,34.3258,204.01,203.92,11.54002657]
[1755941372476,7.5751,203.94,203.93,9.52074249]
[1755941372675,7.5751,203.94,203.79,5.49624071]
[1755941372676,24.5285,203.92,203.81,10.28742619]
[1755941372878,4.9075,203.85,203.82,2.01807303]
[1755941373083,4.9075,203.85,203.83,2.01807303]
[1755941373378,24.5355,203.86,203.78,6.20836478]
[1755941373576,4.9082,203.82,203.79,6.42372509]
[1755941373775,4.9082,203.82,203.8,4.7404708]
[1755941373978,4.9082,203.82,203.81,2.0204708]
[1755941374583,4.9085,203.8,203.77,2.72]
[1755941374779,4.9085,203.8,203.78,2.02174025]
[1755941374983,4.9085,203.8,203.79,2.02174025]
[1755941377684,4.9085,203.8,203.77,2.72]
[1755941377880,4.9085,203.8,203.78,2.0224692]
[1755941378085,4.9085,203.8,203.77,2.72]
[1755941378288,4.9085,203.8,203.78,2.02247082]
[1755941378482,4.909,203.78,203.77,2.72]
[1755941378679,4.909,203.78,203.77,4.74245115]
[1755941378880,4.909,203.78,203.77,2.02245115]
[1755941380088,4.9095,203.76,203.72,8.92836478]
[1755941380282,4.9095,203.76,203.73,6.43156838]
[1755941380488,4.9095,203.76,203.75,2.72]
[1755941380682,4.9095,203.76,203.75,4.74271612]
[1755941380985,24.5369,203.85,203.75,2.02271612]
[1755941381193,24.533,203.88,203.79,2.72]
[1755941381388,24.533,203.88,203.8,2.02271612]
[1755941381577,24.533,203.88,203.79,2.72]
[1755941382488,4.9082,203.81,203.8,2.02158876]
[1755941382687,4.9082,203.81,203.8,2.72]
[1755941382888,4.9082,203.81,203.8,4.7415489]
[1755941383492,4.9078,203.83,203.8,4.7415489]
[1755941383684,24.5356,203.86,203.81,2.72]
[1755941384186,24.533,203.88,203.78,6.20836478]
[1755941384394,24.533,203.88,203.8,2.72]
[1755941384587,24.533,203.88,203.81,15.89001093]
[1755941384793,24.533,203.88,203.82,15.89001093]
[1755941384989,24.533,203.88,203.83,9.00420154]
[1755941385186,24.533,203.88,203.84,9.46400604]
[1755941385493,24.533,203.88,203.85,4.5993206]
[1755941385794,24.533,203.88,203.8,2.72]
[1755941386087,24.533,203.88,203.81,15.55284175]
[1755941386293,4.9076,203.84,203.82,15.55284175]
[1755941386495,4.9076,203.84,203.83,9.00399826]
[1755941386693,4.9076,203.84,203.83,4.5994749]
[1755941386894,24.5343,203.87,203.83,4.60090466]
[1755941386895,24.5363,203.86,203.83,4.60090466]
[1755941387096,24.5363,203.86,203.78,6.20836478]
[1755941387289,24.5343,203.87,203.79,15.55700921]
[1755941387485,24.5343,203.87,203.8,15.55700921]
[1755941387694,24.5367,203.85,203.81,10.91899747]
[1755941387898,24.5367,203.85,203.82,4.60068926]
[1755941388193,24.5367,203.85,203.83,4.60068926]
[1755941388394,4.9084,203.81,203.78,6.20836478]
[1755941388594,4.9084,203.81,203.8,2.72]
[1755941388788,4.9084,203.81,203.8,18.27842472]
[1755941389800,4.9084,203.81,203.8,11.76458986]
[1755941389996,4.9084,203.81,203.8,18.28433695]
[1755941391301,24.5367,203.85,203.8,18.28433695]
[1755941391503,24.5367,203.85,203.81,15.56433695]
[1755941391694,24.5343,203.87,203.82,10.92732773]
[1755941391898,24.5343,203.87,203.83,4.6034755]
[1755941392102,4.907,203.86,203.84,4.6034755]
[1755941392302,24.5343,203.87,203.8,2.72]
[1755941392498,24.5343,203.87,203.81,15.57117963]
[1755941392705,4.9079,203.83,203.82,10.92896247]
[1755941392898,4.9079,203.83,203.82,13.64896247]
[1755941394003,9.8132,203.89,203.83,2.72]
[1755941394203,9.8132,203.89,203.84,4.60486057]
[1755941394397,9.8132,203.89,203.83,2.72]
[1755941394598,9.8132,203.89,203.84,4.60476735]
[1755941394896,24.533,203.88,203.83,2.72]
[1755941395098,4.9073,203.85,203.84,4.6045639]
[1755941395301,4.9073,203.85,203.84,11.16101486]
[1755941396204,4.9073,203.85,203.84,11.16105243]
[1755941397299,4.9073,203.85,203.84,13.88105243]
[1755941399208,4.9073,203.85,203.84,9.23887872]
[1755941399408,4.9073,203.85,203.84,7.36590277]
[1755941399707,4.9073,203.85,203.84,13.89023331]
[1755941399903,4.9073,203.85,203.84,2.72]
[1755941400107,4.9073,203.85,203.84,13.89003081]
[1755941400308,4.9073,203.85,203.84,13.89021297]
[1755941400503,4.9073,203.85,203.75,4.9095]
[1755941400504,24.533,203.88,203.76,4.07906141]
[1755941400706,4.9091,203.78,203.77,4.41453605]
[1755941401097,24.5391,203.83,203.74,8.92836478]
[1755941401298,24.5404,203.82,203.75,4.41543355]
[1755941401502,9.8157,203.83,203.71,2.72]
[1755941401706,9.8157,203.83,203.72,4.41485083]
[1755941402002,9.8157,203.83,203.73,4.41485083]
[1755941402306,24.5432,203.8,203.74,4.41485083]
[1755941402508,24.5432,203.8,203.71,2.72]
[1755941402708,24.5432,203.8,203.72,4.41448934]
[1755941403011,24.5432,203.8,203.73,4.41448934]
[1755941403205,24.5456,203.78,203.74,4.41448934]
[1755941403406,9.8157,203.83,203.72,6.20836478]
[1755941403706,9.8157,203.83,203.73,7.1246399]
[1755941404007,9.8157,203.83,203.74,4.4146399]
[1755941404207,9.8157,203.83,203.75,4.4146399]
[1755941404507,4.9094,203.77,203.76,4.4146399]
[1755941404706,4.9094,203.77,203.76,7.1246399]
[1755941405404,4.9102,203.73,203.72,8.91836478]
[1755941405607,4.9102,203.73,203.72,13.33303639]
[1755941405807,4.9102,203.73,203.72,4.41467161]
[1755941406607,4.9098,203.75,203.72,4.41467161]
[1755941406807,4.9098,203.75,203.73,7.12467161]
[1755941407107,4.9098,203.75,203.74,7.12467161]
[1755941407309,4.9093,203.77,203.75,2.71]
[1755941407500,4.9093,203.77,203.76,4.41344871]
[1755941407703,4.9093,203.77,203.76,7.12344871]
[1755941408107,4.9088,203.79,203.76,4.41344871]
[1755941408407,4.9088,203.79,203.77,7.12344871]
[1755941408597,4.9088,203.79,203.77,2.71]
[1755941410104,4.9083,203.81,203.78,4.41308007]
[1755941410303,24.535,203.87,203.79,4.41225282]
[1755941410502,24.535,203.87,203.78,2.71]
[1755941410808,4.9084,203.81,203.79,4.41201585]
[1755941411007,4.9084,203.81,203.78,2.71]
[1755941411209,4.9084,203.81,203.79,4.41174112]
[1755941411405,4.9084,203.81,203.78,2.71]
[1755941411612,4.9084,203.81,203.79,4.41192103]
[1755941411810,4.9084,203.81,203.78,2.71]
[1755941412110,4.9084,203.81,203.79,4.41213318]
[1755941412312,4.9084,203.81,203.78,2.71]
[1755941412507,4.9084,203.81,203.79,15.40126978]
[1755941412812,4.9084,203.81,203.8,4.54558243]
[1755941413509,4.9084,203.81,203.8,8.243e-05]
[1755941414012,4.9084,203.81,203.72,2.71]
[1755941414013,4.9095,203.76,203.72,2.71]
[1755941414312,4.9095,203.76,203.74,2.71]
[1755941414512,4.9095,203.76,203.75,10.86074682]
[1755941415008,24.5379,203.84,203.75,10.86074682]
[1755941415009,24.5379,203.84,203.76,2.71]
[1755941415214,24.5356,203.86,203.77,10.86074682]
[1755941415412,24.5356,203.86,203.78,10.86074682]
[1755941415607,4.9083,203.81,203.79,6.44664144]
[1755941415807,4.9083,203.81,203.8,6.44664144]
[1755941416012,4.9083,203.81,203.8,9.15664144]
[1755941416615,4.9078,203.83,203.8,9.15664144]
[1755941416814,4.9078,203.83,203.81,6.80331411]
[1755941417016,24.5303,203.91,203.82,9.51331411]
[1755941417315,24.5303,203.91,203.83,11.21865041]
[1755941417515,24.5303,203.91,203.84,6.80331411]
[1755941417717,24.5303,203.91,203.85,6.80331411]
[1755941418015,24.5303,203.91,203.82,2.71]
[1755941418208,4.9064,203.89,203.83,11.21919751]
[1755941418412,4.9064,203.89,203.85,2.71]
[1755941418612,24.5272,203.93,203.85,2.71]
[1755941418613,24.5272,203.93,203.86,6.8043573]
[1755941418811,4.9067,203.88,203.87,6.8043573]
[1755941419208,4.9067,203.88,203.87,2.00014536]
[1755941419519,4.9067,203.88,203.85,2.71]
[1755941419915,4.9067,203.88,203.86,6.80232517]
[1755941420116,4.9069,203.87,203.85,2.71]